[Event "ESNH-ch 2021"]
[Site "Tornelo"]
[Date "2021.04.17"]
[Round "9.2"]
[White "Berend, Fred"]
[Black "Ziska, Helgi Dam"]
[Result "0-1"]
[ECO "E61"]
[WhiteElo "2323"]
[BlackElo "2539"]
[Annotator "ChessBase"]
[PlyCount "144"]
[EventDate "2021.04.17"]
[EventType "tourn"]
[EventCountry "NET"]
[SourceTitle "playchess.com"]
[Source "ChessBase"]
[SourceQuality "1"]
[TimeControl "7200+30"]

1. d4 {[%emt 0:01:08]} Nf6 {[%emt 0:00:07]} 2. c4 {[%emt 0:00:05]} g6 {[%emt 0:00:04]} 3. Nc3 {[%emt 0:00:04]} Bg7 {[%emt 0:00:03]} 4. Nf3 {[%emt 0:00:06]} d6 {[%emt 0:00:10]} 5. Bg5 {[%emt 0:00:12]} h6 {[%emt 0:00:23]} 6. Bh4 {[%emt 0:00:13]} g5 {[%emt 0:01:09]} 7. Bg3 {[%emt 0:00:04]} Nh5 {[%emt 0:00:02]} 8. e3 {[%emt 0:00:17]} e6 {[%emt 0:00:02]} 9. Bd3 {[%emt 0:01:15]} Qe7 {[%emt 0:00:34]} 10. Nd2 {[%emt 0:04:37]} Nxg3 {[%emt 0:00:04]} 11. hxg3 {[%emt 0:00:08]} Nd7 {[%emt 0:03:46]} 12. Qc2 {[%emt 0:02:00]} Nf6 {[%emt 0:05:36]} 13. O-O-O {[%emt 0:04:28]} Bd7 {[%emt 0:00:21]} 14. Kb1 {[%emt 0:03:31]} a6 {[%emt 0:01:02]} 15. Nb3 {[%emt 0:02:43]} c5 {[%emt 0:04:09]} 16. Be2 {[%emt 0:08:43]} Bc6 {[%emt 0:09:12]} 17. Bf3 {[%emt 0:03:28]} Bxf3 {[%emt 0:01:20]} 18. gxf3 {[%emt 0:00:06]} O-O {[%emt 0:00:59]} 19. f4 {[%emt 0:03:19]} b5 {[%emt 0:03:16]} 20. dxc5 {[%emt 0:10:05]} bxc4 {[%emt 0:03:00]} 21. Na5 {[%emt 0:05:41]} d5 {[%emt 0:02:43]} 22. fxg5 {[%emt 0:03:52]} hxg5 {[%emt 0:05:33]} 23. Rxd5 {[%emt 0:03:51]} Rfc8 {[%emt 0:01:42]} 24. Rxg5 {[%emt 0:04:01]} Rxc5 {[%emt 0:00:03]} 25. f4 {[%emt 0:08:31]} Rac8 {[%emt 0:22:47]} 26. Nxc4 {[%emt 0:21:22]} Rxg5 {[%emt 0:13:01]} 27. fxg5 {[%emt 0:00:20]} Nd5 {[%emt 0:00:05]} 28. Ne4 {[%emt 0:02:51]} Qb7 {[%emt 0:14:00]} 29. Rh2 {[%emt 0:07:06]} Nxe3 {[%emt 0:07:47]} 30. Nf6+ {[%emt 0:02:59]} Kf8 {[%emt 0:00:15]} 31. Qb3 {[%emt 0:03:30]} Qxb3 {[%emt 0:00:33]} 32. axb3 {[%emt 0:00:05]} Nxc4 {[%emt 0:00:02]} 33. bxc4 {[%emt 0:00:06]} Rxc4 {[%emt 0:00:08]} 34. Rd2 {[%emt 0:00:44]} Bxf6 {[%emt 0:00:04]} 35. gxf6 {[%emt 0:00:07]} Kg8 {[%emt 0:00:02]} 36. Rd6 {[%emt 0:03:59]} a5 {[%emt 0:00:05]} 37. Ra6 {[%emt 0:00:24]} Rc5 {[%emt 0:01:55]} 38. Ka2 {[%emt 0:00:39]} Kh7 {[%emt 0:00:19]} 39. Ka3 {[%emt 0:00:16]} Rb5 {[%emt 0:17:32]} 40. b3 {[%emt 0:00:24]} Kg6 {[%emt 0:00:09]} 41. Ka4 {[%emt 0:00:05]} Rb4+ {[%emt 0:00:01]} 42. Ka3 {[%emt 0:00:04]} Rb5 {[%emt 0:00:04]} 43. Ka4 {[%emt 0:00:03]} Rb4+ {[%emt 0:00:01]} 44. Ka3 {[%emt 0:00:04]} Kxf6 {[%emt 0:00:02]} 45. Rxa5 {[%emt 0:00:11]} Rg4 {[%emt 0:00:02]} 46. b4 {[%emt 0:01:17]} Rxg3+ {[%emt 0:00:03]} 47. Ka4 {[%emt 0:02:50]} Rg1 {[%emt 0:02:58]} 48. Rh5 {[%emt 0:04:51]} Ke7 {[%emt 0:02:30]} 49. Ka5 {[%emt 0:01:32]} Kd6 {[%emt 0:00:30]} 50. Ka6 {[%emt 0:03:22]} f5 {[%emt 0:00:17]} 51. b5 {[%emt 0:00:30]} Ra1+ {[%emt 0:00:42]} 52. Kb6 {[%emt 0:02:49]} f4 {[%emt 0:00:51]} 53. Rh8 {[%emt 0:01:16]} f3 {[%emt 0:00:21]} 54. Rf8 {[%emt 0:01:18]} Ra3 {[%emt 0:00:03]} 55. Kb7 {[%emt 0:00:46]} Ke7 {[%emt 0:00:56]} 56. Rf4 {[%emt 0:00:54]} e5 {[%emt 0:00:02]} 57. Rf5 {[%emt 0:00:03]} Ke6 {[%emt 0:00:02]} 58. Rf8 {[%emt 0:00:02]} e4 {[%emt 0:00:01]} 59. b6 {[%emt 0:00:15]} Ke5 {[%emt 0:00:23]} 60. Kc7 {[%emt 0:00:16]} Rc3+ {[%emt 0:00:08]} 61. Kd7 {[%emt 0:00:11]} Rb3 {[%emt 0:00:09]} 62. Kc7 {[%emt 0:00:03]} Kd4 {[%emt 0:00:14]} 63. b7 {[%emt 0:00:51]} Kd3 {[%emt 0:00:30]} 64. Rf6 {[%emt 0:00:26]} Ke2 {[%emt 0:04:15]} 65. Rb6 {[%emt 0:01:00]} Rxb6 {[%emt 0:00:02]} 66. Kxb6 {[%emt 0:00:02]} f2 {[%emt 0:00:01]} 67. b8=Q {[%emt 0:00:02]} f1=Q {[%emt 0:00:02]} 68. Qe5 {[%emt 0:00:54]} Qb1+ {[%emt 0:01:15]} 69. Ka7 {[%emt 0:00:11]} Qb4 {[%emt 0:00:48]} 70. Qh5+ {[%emt 0:01:15]} Kd2 {[%emt 0:00:25]} 71. Qd5+ {[%emt 0:00:08]} Kc3 {[%emt 0:01:01]} 72. Ka8 {[%emt 0:01:22]} Qa3+ {[%emt 0:00:06]} 0-1

[Event "ESNH-ch 2021"]
[Site "Tornelo"]
[Date "2021.04.17"]
[Round "9.3"]
[White "Apol, Luitjen Akselsson"]
[Black "Carpenter, Paul A"]
[Result "1-0"]
[ECO "C03"]
[WhiteElo "2092"]
[BlackElo "1982"]
[Annotator "NA"]
[PlyCount "69"]
[EventDate "2021.04.17"]
[EventType "tourn"]
[EventCountry "NET"]
[SourceTitle "playchess.com"]
[Source "ChessBase"]
[SourceQuality "1"]
[TimeControl "7200+30"]

1. d4 {[%emt 0:00:16]} b6 {[%emt 0:02:07]} 2. e4 {[%emt 0:00:49]} Bb7 {[%emt 0:00:30]} 3. Bd3 {[%emt 0:00:23]} e6 {[%emt 0:02:32]} 4. Nf3 {[%emt 0:01:19]} Nf6 {[%emt 0:02:12]} 5. Nbd2 {[%emt 0:08:03]} d5 {[%emt 0:02:17]} 6. e5 {[%emt 0:00:12]} Ne4 {[%emt 0:00:12]} 7. Qe2 {[%emt 0:01:18]} Nxd2 {[%emt 0:00:28]} 8. Bxd2 {[%emt 0:00:13]} c5 {[%emt 0:01:46]} 9. c3 {[%emt 0:00:25]} Nc6 {[%emt 0:15:03]} 10. O-O {[%emt 0:01:18]} Be7 {[%emt 0:02:42]} 11. a3 {[%emt 0:05:04]} g5 {[%emt 0:04:43]} 12. Be3 {[%emt 0:02:08]} h5 {[%emt 0:01:33]} 13. Nd2 {[%emt 0:02:27]} c4 {[%emt 0:26:31]} 14. Bc2 {[%emt 0:01:37]} Kd7 {[%emt 0:00:15]} 15. b3 {[%emt 0:18:44]} b5 {[%emt 0:12:08]} 16. bxc4 {[%emt 0:01:19]} bxc4 {[%emt 0:01:49]} 17. f4 {[%emt 0:00:49]} g4 {[%emt 0:05:22]} 18. f5 {[%emt 0:02:29]} Qg8 {[%emt 0:00:31]} 19. Ba4 {[%emt 0:03:36]} Rf8 {[%emt 0:04:21]} 20. Nxc4 {[%emt 0:13:25]} dxc4 {[%emt 0:04:57]} 21. Qxc4 {[%emt 0:00:06]} Rc8 {[%emt 0:00:21]} 22. Rab1 {[%emt 0:00:22]} Ba8 {[%emt 0:00:08]} 23. f6 {[%emt 0:01:07]} Bxa3 {[%emt 0:00:55]} 24. d5 {[%emt 0:00:45]} exd5 {[%emt 0:01:29]} 25. Qxd5+ {[%emt 0:00:04]} Kc7 {[%emt 0:00:06]} 26. Bf4 {[%emt 0:16:47]} Rd8 {[%emt 0:00:36]} 27. e6+ {[%emt 0:00:08]} Bd6 {[%emt 0:00:05]} 28. e7 {[%emt 0:01:27]} Bxf4 {[%emt 0:04:32]} 29. exd8=Q+ {[%emt 0:00:12]} Qxd8 {[%emt 0:00:24]} 30. Qxf7+ {[%emt 0:00:07]} Qd7 {[%emt 0:01:38]} 31. Qxd7+ {[%emt 0:00:10]} Kxd7 {[%emt 0:00:03]} 32. Rxf4 {[%emt 0:00:05]} Ke6 {[%emt 0:00:31]} 33. Re1+ {[%emt 0:00:49]} Ne5 {[%emt 0:00:15]} 34. Bb3+ {[%emt 0:00:07]} Kd6 {[%emt 0:00:10]} 35. Rd4+ {[%emt 0:00:04]} 1-0

[Event "ESNH-ch 2021"]
[Site "Tornelo"]
[Date "2021.04.17"]
[Round "9.4"]
[White "Luke Brezmes, Cristofer"]
[Black "Righi, Ezio"]
[Result "1-0"]
[ECO "B40"]
[WhiteElo "2043"]
[BlackElo "1915"]
[Annotator "NA"]
[PlyCount "75"]
[EventDate "2021.04.17"]
[EventType "tourn"]
[EventCountry "NET"]
[SourceTitle "playchess.com"]
[Source "ChessBase"]
[SourceQuality "1"]
[TimeControl "7200+30"]

1. e4 {[%emt 0:00:06]} c5 {[%emt 0:00:07]} 2. Nf3 {[%emt 0:00:07]} e6 {[%emt 0:00:11]} 3. b3 {[%emt 0:00:07]} Nf6 {[%emt 0:01:55]} 4. e5 {[%emt 0:00:26]} Nd5 {[%emt 0:01:24]} 5. c4 {[%emt 0:00:35]} Nb4 {[%emt 0:03:34]} 6. a3 {[%emt 0:00:26]} N4c6 {[%emt 0:00:06]} 7. Bb2 {[%emt 0:00:12]} d6 {[%emt 0:01:01]} 8. exd6 {[%emt 0:00:16]} Qxd6 {[%emt 0:00:32]} 9. Nc3 {[%emt 0:00:50]} Nd4 {[%emt 0:02:44]} 10. Ne4 {[%emt 0:01:01]} Qf4 {[%emt 0:00:21]} 11. Bxd4 {[%emt 0:05:32]} Qxe4+ {[%emt 0:03:18]} 12. Be3 {[%emt 0:00:09]} Be7 {[%emt 0:03:27]} 13. d3 {[%emt 0:01:03]} Qg6 {[%emt 0:05:37]} 14. b4 {[%emt 0:05:10]} Nd7 {[%emt 0:03:37]} 15. bxc5 {[%emt 0:02:48]} Bxc5 {[%emt 0:03:09]} 16. d4 {[%emt 0:07:05]} Bb6 {[%emt 0:00:15]} 17. Bd3 {[%emt 0:00:57]} Ba5+ {[%emt 0:03:58]} 18. Kf1 {[%emt 0:00:41]} Qh5 {[%emt 0:02:07]} 19. h3 {[%emt 0:01:39]} f5 {[%emt 0:06:02]} 20. Qa4 {[%emt 0:00:26]} Bc7 {[%emt 0:03:28]} 21. Ne5 {[%emt 0:08:31]} Bxe5 {[%emt 0:00:30]} 22. dxe5 {[%emt 0:00:06]} O-O {[%emt 0:00:05]} 23. f4 {[%emt 0:00:45]} b6 {[%emt 0:01:46]} 24. Be2 {[%emt 0:00:30]} Qh4 {[%emt 0:08:05]} 25. Bf3 {[%emt 0:28:02]} Rb8 {[%emt 0:09:35]} 26. Qxa7 {[%emt 0:00:55]} Nxe5 {[%emt 0:03:27]} 27. Qxb8 {[%emt 0:02:33]} Nxf3 {[%emt 0:00:48]} 28. Qxb6 {[%emt 0:09:34]} Qg3 {[%emt 0:07:13]} 29. Rd1 {[%emt 0:10:56]} Nh4 {[%emt 0:08:14]} 30. Ke2 {[%emt 0:11:34]} Qxg2+ {[%emt 0:01:19]} 31. Kd3 {[%emt 0:00:09]} Qe4+ {[%emt 0:00:28]} 32. Kc3 {[%emt 0:00:14]} Ng2 {[%emt 0:03:26]} 33. Bc5 {[%emt 0:01:06]} Nxf4 {[%emt 0:06:30]} 34. Bxf8 {[%emt 0:06:44]} Ne2+ {[%emt 0:06:04]} 35. Kb4 {[%emt 0:00:41]} Qf3 {[%emt 0:06:17]} 36. Rd8 {[%emt 0:02:58]} Qc3+ {[%emt 0:00:27]} 37. Kb5 {[%emt 0:00:28]} Qb3+ {[%emt 0:00:17]} 38. Bb4+ {[%emt 0:00:06]} 1-0

[Event "ESNH-ch 2021"]
[Site "Tornelo"]
[Date "2021.04.17"]
[Round "9.5"]
[White "Darmanin, Jake"]
[Black "Efimov, Igor"]
[Result "0-1"]
[ECO "B08"]
[WhiteElo "2106"]
[BlackElo "2416"]
[Annotator "NA"]
[PlyCount "84"]
[EventDate "2021.04.17"]
[EventType "tourn"]
[EventCountry "NET"]
[SourceTitle "playchess.com"]
[Source "ChessBase"]
[SourceQuality "1"]
[TimeControl "7200+30"]

1. e4 {[%emt 0:00:10]} d6 {[%emt 0:00:06]} 2. d4 {[%emt 0:00:31]} Nf6 {[%emt 0:00:08]} 3. Nc3 {[%emt 0:01:25]} g6 {[%emt 0:00:27]} 4. Nf3 {[%emt 0:00:49]} Bg7 {[%emt 0:00:17]} 5. h3 {[%emt 0:00:52]} O-O {[%emt 0:00:16]} 6. Be3 {[%emt 0:00:17]} a6 {[%emt 0:00:59]} 7. Qd2 {[%emt 0:01:26]} b5 {[%emt 0:00:20]} 8. a3 {[%emt 0:03:55]} Bb7 {[%emt 0:00:36]} 9. Bd3 {[%emt 0:00:11]} Nbd7 {[%emt 0:00:36]} 10. Bh6 {[%emt 0:09:10]} c5 {[%emt 0:06:36]} 11. Bxg7 $11 {[%emt 0:10:13]} Kxg7 {[%emt 0:00:08]} 12. Qe3 {[%emt 0:04:58]} cxd4 {[%emt 0:19:40]} 13. Nxd4 {[%emt 0:00:14]} Qb6 {[%emt 0:04:08]} 14. Kd2 {[%emt 0:09:35]} Rac8 {[%emt 0:13:02]} 15. f4 {[%emt 0:06:14]} e5 {[%emt 0:04:25]} 16. fxe5 {[%emt 0:07:58]} dxe5 {[%emt 0:01:16]} 17. Nf3 {[%emt 0:05:31]} b4 {[%emt 0:14:07]} 18. axb4 {[%emt 0:01:13]} Qxb4 {[%emt 0:00:07]} 19. Ra4 {[%emt 0:07:27]} Qd6 {[%emt 0:15:52]} 20. Ke2 {[%emt 0:05:51]} Nc5 {[%emt 0:01:42]} 21. Ra5 {[%emt 0:05:24]} Nh5 {[%emt 0:09:53]} 22. Rd1 {[%emt 0:01:17]} Nxd3 {[%emt 0:05:34]} 23. cxd3 {[%emt 0:01:13]} Qb4 {[%emt 0:00:08]} 24. Ra2 {[%emt 0:01:29]} Qb3 {[%emt 0:00:31]} 25. Rd2 {[%emt 0:01:04]} f5 {[%emt 0:01:41]} 26. Nxe5 {[%emt 0:19:33]} fxe4 {[%emt 0:03:10]} 27. dxe4 {[%emt 0:03:25]} Rxc3 {[%emt 0:12:41]} 28. bxc3 {[%emt 0:15:59]} Nf4+ {[%emt 0:00:23]} 29. Kf2 {[%emt 0:03:53]} Nd5+ {[%emt 0:00:29]} 30. Qf3 {[%emt 0:00:04]} Qxc3 {[%emt 0:02:27]} 31. Kg1 {[%emt 0:01:38]} Rxf3 {[%emt 0:00:10]} 32. Nxf3 {[%emt 0:00:04]} Qe3+ {[%emt 0:00:34]} 33. Kh2 {[%emt 0:00:34]} Qxe4 {[%emt 0:00:07]} 34. Rab2 {[%emt 0:00:20]} Bc6 {[%emt 0:00:25]} 35. Rd4 {[%emt 0:00:24]} Qe6 {[%emt 0:00:10]} 36. Rh4 {[%emt 0:00:35]} Nf6 {[%emt 0:02:58]} 37. Rd2 {[%emt 0:00:21]} Bxf3 {[%emt 0:00:09]} 38. gxf3 {[%emt 0:00:24]} Qe3 {[%emt 0:00:15]} 39. Rc2 {[%emt 0:01:11]} Nh5 {[%emt 0:00:51]} 40. Kg2 {[%emt 0:01:00]} Nf4+ {[%emt 0:01:08]} 41. Kg3 {[%emt 0:00:06]} Qe1+ {[%emt 0:00:08]} 42. Kg4 {[%emt 0:00:14]} h5+ {[%emt 0:00:07]} 0-1